fUST/lending_fUST_20260330
["ID","MTS","AMOUNT","RATE_DAILY","PERIOD"]
[419090012,1774860445452,-714.89164244,0.00030958,9]
[419090013,1774860445520,-701.20535696,0.00030958,9]
[419090014,1774860445591,-483.47349754,0.00030958,9]
[419090015,1774860445661,-3465.91591342,0.00030958,9]
[419090016,1774860445729,-5951.88444753,0.00030958,9]
[419090017,1774860445798,-1035.72352841,0.00030958,9]
[419090018,1774860445868,-840.04,0.00030958,9]
[419090019,1774860445941,-2353.73020623,0.00030958,9]
[419090020,1774860446010,-451.0,0.00030958,7]
[419090021,1774860446081,-242.84915132,0.00030986,120]
[419090022,1774860446154,-397.11854921,0.00031,120]
[419090023,1774860446229,-850.0,0.00031233,5]
[419090024,1774860446296,-451.0,0.00031506,8]
[419090025,1774860446364,-152.0,0.00031711,30]
[419090026,1774860446431,-240.0,0.00031735,30]
[419090027,1774860446497,-185.0,0.00031735,30]
[419090028,1774860446567,-152.0,0.00031735,30]
[419090029,1774860446629,-950.0,0.00031781,5]
[419090030,1774860446692,-1636.5,0.000319,120]
[419090031,1774860446755,-162.33553959,0.00032,120]
[419090032,1774860446818,-880.58538208,0.00032,10]
[419090033,1774860446881,-451.0,0.00032054,9]
[419090034,1774860446945,-386.17471497,0.00032329,7]
[419090035,1774860447010,-1050.0,0.00032329,5]
[419090036,1774860447075,-2024638.11069104,0.00032375,7]
[419090038,1774860462829,-354.23,0.0002089,10]
[419090039,1774860462893,-295.19,0.0002089,10]
[419090040,1774860462957,-245.99,0.0002089,10]
[419090041,1774860463028,-720.0,0.00021385,10]
[419090042,1774860463099,-360.86,0.00021861,10]
[419090043,1774860463194,-864.0,0.00023524,10]
[419090044,1774860463281,-1000.0,0.00025876,10]
[419090045,1774860463365,-1000.0,0.00028464,30]
[419090046,1774860463444,-244.0,0.00028464,30]
[419090047,1774860463641,-578.97484428,0.0002869,120]
[419090048,1774860463722,-1000.0,0.0003131,30]
[419090049,1774860463795,-492.0,0.0003131,30]
[419090050,1774860463866,-522.0,0.00032375,30]
[419090051,1774860463937,-604.0,0.00032375,30]
[419090052,1774860464008,-1307519.97670896,0.00032375,7]
[419090053,1774860464079,-705319.2783,0.0003243,7]
[419090054,1774860464150,-1000.0,0.000326,120]
[419090055,1774860464219,-369.0,0.000326,120]
[419090056,1774860464290,-451.0,0.00032602,10]
[419090057,1774860464363,-152.0,0.00032711,30]
[419090058,1774860464429,-163.33,0.00032721,15]
[419090059,1774860464496,-162.91,0.00032721,15]
[419090060,1774860464564,-240.0,0.00032735,30]
[419090061,1774860464630,-185.0,0.00032735,30]
[419090062,1774860464697,-152.0,0.00032735,30]
[419090063,1774860464761,-163.33,0.00032821,15]
[419090064,1774860464826,-162.91868909,0.00032821,15]
[419090065,1774860464892,-1595.58416209,0.00032876,120]
[419090066,1774860464957,-1150.0,0.00032877,5]
[419090067,1774860465025,-500.0,0.00032877,10]
[419090068,1774860465093,-500.0,0.00032877,12]
[419090069,1774860465163,-1000.0,0.000329,120]
[419090070,1774860465227,-1000.0,0.000329,120]
[419090071,1774860465293,-1636.5,0.000329,120]
[419090072,1774860465358,-163.33,0.00032921,60]
[419090073,1774860465423,-30000.0,0.00033,7]
[419090074,1774860465487,-210.76561135,0.00033,120]
[419090075,1774860465551,-258.41041041,0.00033,30]
[419090076,1774860465614,-349.66256294,0.00033,120]
[419090077,1774860465676,-152.0,0.00033,14]
[419090078,1774860465740,-270.83333333,0.00033,7]
[419090079,1774860465802,-163.33,0.00033021,60]
[419090080,1774860465864,-163.33,0.00033121,60]
[419090081,1774860465925,-451.0,0.0003315,11]
[419090082,1774860465987,-152.0,0.00033151,30]
[419090083,1774860466054,-1000.0,0.000332,120]
[419090084,1774860466124,-1000.0,0.000332,120]
[419090085,1774860466190,-384.45937335,0.000332,117]
[419090086,1774860466256,-163.33775436,0.00033221,60]
[419090087,1774860466322,-199.11,0.000333,120]
[419090088,1774860466391,-989.68,0.000333,120]
[419090089,1774860466456,-1250.0,0.00033425,5]
[419090090,1774860466521,-500.0,0.00033425,14]
[419090091,1774860466587,-930474.67824984,0.00033444,7]
[419090092,1774860474132,-300.71,0.00021438,10]
[419090093,1774860474241,-1846323.72785016,0.00033444,7]
[419090094,1774860474310,-391.0,0.00033444,30]
[419090095,1774860474465,-453.0,0.00033444,30]
[419090096,1774860474535,-1000.0,0.000335,120]
[419090097,1774860474601,-1000.0,0.000335,120]
[419090098,1774860474667,-4558.60437387,0.00033563,120]
[419090099,1774860474732,-451.0,0.00033698,12]
[419090100,1774860474798,-152.0,0.00033711,30]
[419090101,1774860474862,-240.0,0.00033735,30]
[419090102,1774860474926,-185.0,0.00033735,30]
[419090103,1774860474989,-152.0,0.00033735,30]
[419090104,1774860475052,-1000.0,0.000338,120]
[419090105,1774860475115,-209.07,0.000338,120]
[419090106,1774860475177,-1000.0,0.000338,120]
[419090107,1774860475240,-399.4435,0.000338,20]
[419090108,1774860475307,-643.2341,0.000338,10]
[419090109,1774860475372,-228.03034577,0.000338,20]
[419090110,1774860475439,-1636.5,0.000339,120]
[419090111,1774860475502,-1444.0,0.00033973,120]
[419090112,1774860475569,-1350.0,0.00033973,5]
[419090113,1774860475636,-270.83333333,0.00034,7]
[419090114,1774860475702,-1000.0,0.000341,120]
[419090115,1774860475770,-1000.0,0.000341,120]
[419090116,1774860475837,-451.0,0.00034246,13]
[419090117,1774860475901,-219.52,0.000343,120]
[419090118,1774860475969,-200.0,0.00034317,120]
[419090119,1774860476034,-1000.0,0.000344,120]
[419090120,1774860476103,-1000.0,0.000344,120]
[419090121,1774860476169,-388.6313022,0.00034521,5]
[419090122,1774860476235,-152.0,0.00034521,30]
[419090123,1774860476299,-500.0,0.00034521,16]
[419090124,1774860476366,-1000.0,0.000347,120]
[419090125,1774860476432,-1000.0,0.000347,120]
[419090126,1774860476503,-155.66600649,0.00034711,30]
[419090127,1774860476572,-366.13,0.00034721,60]
[419090128,1774860476638,-240.0,0.00034735,30]
[419090129,1774860476704,-185.0,0.00034735,30]
[419090130,1774860476768,-152.0,0.00034735,30]
[419090131,1774860476835,-348.46,0.00034763,60]
[419090132,1774860476899,-451.0,0.00034794,14]
[419090133,1774860476965,-366.13,0.00034821,60]
[419090134,1774860477030,-348.46,0.00034863,60]
[419090135,1774860477095,-1636.5,0.000349,120]
[419090136,1774860477159,-366.35720872,0.00034921,60]
[419090137,1774860477224,-167.4063,0.00034925,30]
[419090138,1774860477290,-348.46,0.00034963,60]
[419090139,1774860477355,-867896.60413463,0.00035,7]
[419090140,1774860477419,-1000.0,0.00035,120]
[419090141,1774860477483,-49544.0,0.00035,30]
[419090142,1774860477547,-617.14440019,0.00035,120]
[419090143,1774860477612,-1000.0,0.00035,120]
[419090144,1774860477676,-170.0,0.00035,120]
[419090145,1774860477743,-270.83333333,0.00035,7]
[419090146,1774860477812,-200.0,0.00035,5]
[419090147,1774860477880,-348.46,0.00035063,60]
[419090148,1774860477951,-348.46,0.00035163,60]
[419090149,1774860478021,-348.46,0.00035263,60]
[419090150,1774860478097,-1000.0,0.000353,120]
[419090151,1774860478168,-1000.0,0.000353,120]
[419090152,1774860478242,-200.0,0.00035331,120]
[419090153,1774860478314,-451.0,0.00035342,15]
[419090154,1774860478392,-4698.66584926,0.00035348,120]
[419090155,1774860478466,-348.46,0.00035363,60]
[419090156,1774860478537,-339.232,0.00035403,30]
[419090157,1774860478610,-329.27354538,0.00035403,120]
[419090158,1774860478684,-152.0,0.00035422,120]
[419090159,1774860478753,-348.46,0.00035463,60]
[419090160,1774860478825,-240.0,0.00035469,120]
[419090161,1774860478898,-162.0,0.00035469,120]
[419090162,1774860478972,-185.0,0.00035469,120]
[419090163,1774860479047,-152.0,0.00035469,120]
[419090164,1774860479226,-159.16,0.00035475,14]
[419090165,1774860479305,-170.0,0.000355,120]
[419090166,1774860479384,-348.46,0.00035563,60]
[419090167,1774860479462,-1000.0,0.000356,120]
[419090168,1774860479537,-1000.0,0.000356,120]
[419090169,1774860479612,-349.72929954,0.00035616,30]
[419090170,1774860479692,-348.46,0.00035663,60]
[419090171,1774860479771,-1394.06580101,0.00035694,120]
[419090172,1774860479852,-348.46,0.00035763,60]
[419090173,1774860479926,-348.46,0.00035863,60]
[419090174,1774860479997,-451.0,0.0003589,16]
[419090175,1774860480071,-1000.0,0.000359,120]
[419090176,1774860480149,-170.0,0.000359,120]
[419090177,1774860480228,-531.8,0.000359,120]
[419090178,1774860480304,-452.5061,0.000359,120]
[419090179,1774860480381,-161.3801,0.000359,120]
[419090180,1774860480460,-1636.5,0.000359,120]
[419090181,1774860480548,-348.46,0.00035963,60]
[419090182,1774860480636,-348.46,0.00036063,60]
[419090183,1774860480727,-348.46,0.00036163,60]
[419090184,1774860480811,-1132.0,0.000362,120]
[419090185,1774860480893,-157.0,0.00036247,30]
[419090186,1774860480973,-348.46,0.00036263,60]
[419090187,1774860481054,-348.46,0.00036363,60]
[419090188,1774860481134,-170.0,0.000364,120]
[419090189,1774860481216,-152.0,0.00036422,120]
[419090190,1774860481305,-451.0,0.00036438,17]
[419090191,1774860481386,-348.46,0.00036463,60]
[419090192,1774860481469,-240.0,0.00036469,120]
[419090193,1774860481548,-162.0,0.00036469,120]
[419090194,1774860481624,-185.0,0.00036469,120]
[419090195,1774860481701,-152.0,0.00036469,120]
[419090196,1774860481783,-348.46,0.00036563,60]
[419090197,1774860481860,-348.46,0.00036663,60]
[419090198,1774860481938,-348.46,0.00036763,60]
[419090199,1774860482015,-40000.25448961,0.000368,5]
[419090200,1774860482092,-348.46,0.00036863,60]
[419090201,1774860482167,-170.0,0.000369,120]
[419090202,1774860482242,-1636.5,0.000369,120]
[419090203,1774860482320,-348.46,0.00036963,60]
[419090204,1774860482391,-451.0,0.00036986,18]
[419090205,1774860482466,-348.46,0.00037063,60]
[419090206,1774860482540,-348.46,0.00037163,60]
[419090207,1774860482611,-211.02620242,0.0003726,14]
[419090208,1774860482685,-348.46,0.00037263,60]
[419090209,1774860482755,-170.0,0.000373,120]
[419090210,1774860482823,-348.46,0.00037363,60]
[419090211,1774860482892,-152.0,0.00037422,120]
[419090212,1774860482961,-1479.79455028,0.00037445,120]
[419090213,1774860483031,-348.46,0.00037463,60]
[419090214,1774860483099,-240.0,0.00037469,120]
[419090215,1774860483169,-162.0,0.00037469,120]
[419090216,1774860483237,-185.0,0.00037469,120]
[419090217,1774860483310,-152.0,0.00037469,120]
[419090218,1774860483382,-451.0,0.00037534,19]
[419090219,1774860483458,-348.46,0.00037563,60]
[419090220,1774860483532,-348.46,0.00037663,60]
[419090221,1774860483604,-348.46,0.00037763,60]
[419090222,1774860483677,-170.0,0.000378,120]
[419090223,1774860483750,-348.46,0.00037863,60]
[419090224,1774860483819,-1636.5,0.000379,120]
[419090225,1774860483887,-348.46,0.00037963,60]
[419090226,1774860483956,-197.2867201,0.00038,120]
[419090227,1774860484027,-348.46,0.00038063,60]
[419090228,1774860484096,-451.0,0.00038082,20]
[419090229,1774860484251,-1451.74,0.000381,120]
[419090230,1774860484322,-292.25,0.000381,30]
[419090231,1774860484396,-348.46,0.00038163,60]
[419090232,1774860484471,-170.0,0.000382,120]
[419090233,1774860484548,-348.46,0.00038263,60]
[419090234,1774860484620,-225.20923235,0.00038356,9]
[419090235,1774860484692,-348.46,0.00038363,120]
[419090236,1774860484763,-152.0,0.00038422,120]
[419090237,1774860484833,-348.46,0.00038463,120]
[419090238,1774860484905,-240.0,0.00038469,120]
[419090239,1774860484976,-162.0,0.00038469,120]
[419090240,1774860485048,-185.0,0.00038469,120]
[419090241,1774860485119,-152.0,0.00038469,120]
[419090242,1774860485192,-200.0,0.00038483,120]
[419090243,1774860485267,-348.46,0.00038563,120]
[419090244,1774860485339,-451.0,0.0003863,21]
[419090245,1774860485412,-152.0,0.00038663,90]
[419090246,1774860485486,-348.46,0.00038663,120]
[419090247,1774860485557,-170.0,0.000387,120]
[419090248,1774860485626,-200.0,0.00038716,120]
[419090249,1774860485697,-348.46,0.00038763,120]
[419090250,1774860485765,-200.0,0.0003881,120]
[419090251,1774860485832,-200.0,0.00038822,120]
[419090252,1774860485900,-348.46,0.00038863,120]
[419090253,1774860485968,-1636.5,0.000389,120]
[419090254,1774860486037,-369.91011454,0.00038904,90]
[419090255,1774860486108,-5029.21888765,0.00038919,120]
[419090256,1774860486180,-348.46,0.00038963,120]
[419090257,1774860486250,-723.0,0.00039,7]
[419090258,1774860486321,-348.46,0.00039063,120]
[419090259,1774860486392,-348.46,0.00039163,120]
[419090260,1774860486463,-451.0,0.00039178,22]
[419090261,1774860486538,-1565.52329955,0.00039195,120]
[419090262,1774860486617,-170.0,0.000392,120]
[419090263,1774860486689,-348.46,0.00039263,120]
[419090264,1774860486756,-207.48228961,0.000393,120]
[419090265,1774860486828,-348.46,0.00039363,120]
[419090266,1774860486896,-177.48470038,0.000394,120]
[419090267,1774860486960,-321.45144622,0.000394,120]
[419090268,1774860487028,-246.98384527,0.000394,120]
[419090269,1774860487100,-397.93825012,0.000394,120]
[419090270,1774860487171,-572.59157803,0.000394,120]
[419090271,1774860487243,-763.79178983,0.000394,120]
[419090272,1774860487318,-816.50384627,0.000394,120]
[419090273,1774860487392,-209.45719771,0.000394,120]
[419090274,1774860487465,-808.68205305,0.000394,120]
[419090275,1774860487537,-178.6240425,0.000394,120]
[419090276,1774860487611,-192.88260577,0.000394,120]
[419090277,1774860487684,-152.0,0.00039422,120]
[419090278,1774860487758,-348.46,0.00039463,120]
[419090279,1774860487828,-240.0,0.00039469,120]
[419090280,1774860487896,-162.0,0.00039469,120]
[419090281,1774860487964,-185.0,0.00039469,120]
[419090282,1774860488031,-152.0,0.00039469,120]
[419090283,1774860488106,-158.57611673,0.000395,14]
[419090284,1774860488181,-348.46,0.00039563,120]
[419090285,1774860488253,-170.0,0.000396,120]
[419090286,1774860488327,-348.46,0.00039663,120]
[419090287,1774860488397,-451.0,0.00039726,23]
[419090288,1774860488470,-348.46,0.00039763,120]
[419090289,1774860488545,-348.46,0.00039863,120]
[419090290,1774860488617,-1636.5,0.000399,120]
[419090291,1774860488690,-348.46,0.00039963,120]
[419090292,1774860488759,-4454.0,0.0004,5]
[419090293,1774860488905,-469.79,0.0004,7]
[419090294,1774860488978,-158.92,0.0004,7]
[419090295,1774860489048,-26509.2911776,0.0004,5]
[419090296,1774860489120,-12634.39904367,0.0004,5]
[419090297,1774860489193,-50370.16763686,0.0004,7]
[419090298,1774860502392,-174.02,0.0002089,10]
[419090299,1774860502467,-1000.0,0.00021222,10]
[419090300,1774860502537,-250.59,0.00021329,10]
[419090301,1774860502605,-208.83,0.00021329,10]
[419090302,1774860502699,-1000.0,0.00023344,10]
[419090303,1774860502891,-244.0,0.00023344,10]
[419090304,1774860502973,-1000.0,0.00025678,10]
[419090305,1774860503044,-492.0,0.00025678,10]
[419090306,1774860503130,-1000.0,0.00028246,30]
[419090307,1774860503210,-791.0,0.00028246,30]
[419090308,1774860503291,-738.0,0.0003107,30]
[419090309,1774860503393,-227.17,0.00038865,60]
[419090310,1774860503469,-425.6,0.00039,60]
[419090311,1774860503545,-1266.56,0.00039,60]
[419090312,1774860503622,-458.07326242,0.000394,120]
[419090313,1774860503698,-8254.00618552,0.0004,7]
[419090314,1774860503771,-157209.02183566,0.0004,7]
[419090315,1774860503846,-117478.465,0.0004,7]
[419090316,1774860503921,-100160.29420392,0.0004,7]
[419090317,1774860503996,-5000.0,0.0004,120]
[419090318,1774860504068,-893.89548719,0.0004,120]
[419090319,1774860504141,-446.58015506,0.0004,120]
[419090320,1774860504217,-500.0,0.0004,120]
[419090321,1774860504290,-500.0,0.0004,26]
[419090322,1774860504362,-980.0,0.0004,20]
[419090323,1774860504433,-293.0,0.0004,30]
[419090324,1774860504502,-339.0,0.0004,30]
[419090325,1774860504575,-348.46,0.00040063,120]
[419090326,1774860504646,-170.0,0.000401,120]
[419090327,1774860504723,-348.46,0.00040163,120]
[419090328,1774860504797,-348.46,0.00040263,120]
[419090329,1774860504868,-451.0,0.00040273,24]
[419090330,1774860504943,-348.46,0.00040363,120]
[419090331,1774860505018,-200.0,0.00040406,120]
[419090332,1774860505088,-152.0,0.00040422,120]
[419090333,1774860505163,-348.94779987,0.00040463,120]
[419090334,1774860505232,-240.0,0.00040469,120]
[419090335,1774860505301,-162.0,0.00040469,120]
[419090336,1774860505369,-185.0,0.00040469,120]
[419090337,1774860505439,-152.0,0.00040469,120]
[419090338,1774860505510,-207.48228961,0.000405,120]
[419090339,1774860505579,-458.07326242,0.000405,120]
[419090340,1774860505646,-262.41412079,0.00040548,120]
[419090341,1774860505716,-1266.56,0.0004056,60]
[419090342,1774860505785,-425.6,0.0004056,60]
[419090343,1774860505852,-177.48470038,0.000406,120]
[419090344,1774860505921,-321.45144622,0.000406,120]
[419090345,1774860505987,-246.98384527,0.000406,120]
[419090346,1774860506055,-397.93825012,0.000406,120]
[419090347,1774860506123,-808.68205305,0.000406,120]
[419090348,1774860506192,-178.6240425,0.000406,120]
[419090349,1774860506259,-192.88260577,0.000406,120]
[419090350,1774860506327,-170.0,0.000406,120]
[419090351,1774860506399,-5288.14658894,0.00040704,120]
[419090352,1774860506467,-451.0,0.00040821,25]
[419090353,1774860506536,-1636.5,0.000409,120]
[419090354,1774860506607,-1637.52621795,0.00040946,120]
[419090355,1774860506674,-240.0,0.00040986,120]
[419090356,1774860506741,-240.0,0.00040986,120]
[419090357,1774860506811,-240.0,0.00040986,120]
[419090358,1774860506880,-240.0,0.00040986,120]
[419090359,1774860507033,-243.25,0.00040986,120]
[419090360,1774860507103,-170.0,0.00041,120]
[419090361,1774860507174,-151.58,0.00041095,5]
[419090362,1774860507246,-151.58,0.00041095,5]
[419090363,1774860507316,-599.60298507,0.00041096,5]
[419090364,1774860507388,-621.78829552,0.00041096,5]
[419090365,1774860507459,-664.23176449,0.00041096,5]
[419090366,1774860507532,-599.60298507,0.00041096,5]
[419090367,1774860507605,-621.78829552,0.00041096,5]
[419090368,1774860507676,-644.79446246,0.00041096,5]
[419090369,1774860507745,-668.65185757,0.00041096,5]
[419090370,1774860507815,-693.3919763,0.00041096,5]
[419090371,1774860507884,-311.42873569,0.00041096,5]
[419090372,1774860507953,-162.380719,0.00041096,5]
[419090373,1774860508023,-168.3888056,0.00041096,5]
[419090374,1774860508094,-162.380719,0.00041096,5]
[419090375,1774860508177,-2398.4119403,0.00041096,5]
[419090376,1774860508258,-2487.15318209,0.00041096,5]
[419090377,1774860508336,-2579.17784983,0.00041096,5]
[419090378,1774860508415,-2674.60743027,0.00041096,5]
[419090379,1774860508493,-2773.56790519,0.00041096,5]
[419090380,1774860508569,-151.0,0.00041096,5]
[419090381,1774860508647,-151.0,0.00041096,5]
[419090382,1774860508720,-151.0,0.00041096,5]
[419090383,1774860508795,-181.08010149,0.00041096,5]
[419090384,1774860508870,-324.30861452,0.00041096,5]
[419090385,1774860508944,-191.340234,0.00041096,120]
[419090386,1774860509042,339.0,0.00022895,10]
[419090387,1774860509261,154.84,0.00035675,30]
[419090388,1774860543181,190.26,2.018e-05,2]
[419090411,1774860638003,-684.23268755,7.397e-05,2]
[419090412,1774860638126,-4315.76731245,7.397e-05,2]
[419090413,1774860638137,-525.0,7.472e-05,2]
[419090414,1774860638150,-578.96069921,7.684e-05,2]
[419090415,1774860638161,-645.96170949,7.7e-05,2]
[419090417,1774860638171,-1135.20628796,7.784e-05,2]
[419090419,1774860638181,-1200.0,8.568e-05,2]
[419090421,1774860638190,-300.0,8.569e-05,2]
[419090423,1774860638200,-1691.45187671,8.57e-05,2]
[419090424,1774860638209,-300.0,8.74e-05,2]
[419090425,1774860638219,-300.0,8.74e-05,2]
[419090426,1774860638230,-300.0,8.74e-05,2]
[419090427,1774860638239,-300.0,8.74e-05,2]
[419090428,1774860638249,-300.0,8.74e-05,2]
[419090429,1774860638258,-300.0,8.74e-05,2]
[419090430,1774860638268,-300.0,8.74e-05,2]
[419090431,1774860638279,-300.0,8.74e-05,2]
[419090432,1774860638290,-300.0,8.74e-05,2]
[419090433,1774860638301,-300.0,8.74e-05,2]
[419090434,1774860638310,-300.0,8.74e-05,2]
[419090435,1774860638320,-300.0,8.74e-05,2]
[419090436,1774860638330,-300.0,8.74e-05,2]
[419090437,1774860638340,-300.0,8.74e-05,2]
[419090438,1774860638350,-300.0,8.74e-05,2]
[419090439,1774860638359,-500.0,8.74e-05,2]
[419090440,1774860638370,-500.0,8.74e-05,2]
[419090441,1774860638379,-500.0,8.74e-05,2]
[419090442,1774860638390,-1000.0,9.288e-05,2]
[419090443,1774860638400,-1000.0,9.288e-05,2]
[419090444,1774860638410,-1000.0,9.288e-05,2]
[419090445,1774860638420,-901.0,9.425e-05,2]
[419090446,1774860638432,-420.0,9.426e-05,2]
[419090447,1774860638451,-627.63630921,9.5e-05,2]
[419090448,1774860638469,-1500.0,9.836e-05,2]
[419090449,1774860638481,-1500.0,9.836e-05,2]
[419090450,1774860638498,-250.19743157,9.988e-05,2]
[419090451,1774860638514,-587.0,0.00010368,2]
[419090452,1774860638530,-2000.0,0.00010384,2]
[419090453,1774860638547,-2000.0,0.00010384,2]
[419090454,1774860638564,-2500.0,0.00010932,2]
[419090455,1774860638579,-2500.0,0.00010932,2]
[419090456,1774860638593,-823.0,0.00011405,2]
[419090457,1774860638605,-787.63396103,0.0001148,2]
[419090458,1774860638622,-2212.36603897,0.0001148,2]
[419090459,1774860638638,-3000.0,0.0001148,2]
[419090460,1774860638654,-3500.0,0.00012028,2]
[419090461,1774860638669,-3500.0,0.00012028,2]
[419090462,1774860638686,-1152.0,0.00012546,2]
[419090463,1774860638701,-4000.0,0.00012576,2]
[419090464,1774860638712,-4000.0,0.00012576,2]
[419090465,1774860638723,-4500.0,0.00013124,2]
[419090466,1774860638738,-4500.0,0.00013124,2]
[419090467,1774860638751,-500.0,0.00013384,2]
[419090468,1774860638765,-2000.0,0.00013672,2]
[419090469,1774860638780,-5000.0,0.00013672,2]
[419090470,1774860638794,-1000.0,0.00013699,2]
[419090471,1774860638807,-1000.0,0.00013699,2]
[419090472,1774860638819,-1613.0,0.000138,2]
[419090473,1774860638832,-2247.69746546,0.00013926,2]
[419090474,1774860638844,-1000.0,0.00014,2]
[419090475,1774860638856,-1360.96702841,0.00014219,2]
[419090476,1774860638869,-1347.0,0.00015181,2]
[419090477,1774860638881,-15380.3736,0.00015632,2]
[419090478,1774860638893,-171.034875,0.00015844,2]
[419090479,1774860638906,-99.95900496,0.00015944,2]
[419090517,1774860640743,-500.04099504,0.00015944,2]
[419090518,1774860640753,-720.0,0.00016438,2]
[419090520,1774860640763,-1000.0,0.00017,2]
[419090521,1774860640772,-500.0,0.00017167,2]
[419090523,1774860640782,-720.0,0.00017538,2]
[419090524,1774860640791,-500.0,0.0001906,2]
[419090526,1774860640802,-864.0,0.00019292,2]
[419090528,1774860640812,-675.23597311,0.00019781,2]
[419090529,1774860640822,-171.034875,0.00019833,2]
[419090531,1774860640831,-971.36746148,0.00020272,2]
[419090532,1774860640839,-3701.85346091,0.00020722,2]
[419090754,1774860646252,-5000.0,0.00015686,2]
[419090755,1774860646262,-4509.8685097,0.00015844,2]
[419090756,1774860646272,-68623.3137656,0.00020722,2]
[419090757,1774860646305,-7145.56779888,0.00020722,2]
[419090855,1774861319505,-4613.24374856,0.00013292,2]
[419090856,1774861319525,-771.0,0.00013426,2]
[419090857,1774861319534,-611.0,0.00013426,2]
[419090858,1774861319544,-1000.0,0.00013699,2]
[419090859,1774861319554,-300.0,0.0001387,2]
[419090860,1774861319563,-300.0,0.0001387,2]
[419090861,1774861319573,-300.0,0.0001387,2]
[419090862,1774861319582,-300.0,0.0001387,2]
[419090863,1774861319592,-300.0,0.0001387,2]
[419090864,1774861319602,-300.0,0.0001387,2]
[419090865,1774861319611,-300.0,0.0001387,2]
[419090866,1774861319621,-131.24374856,0.0001387,2]
[419090867,1774861319633,-168.75625144,0.0001387,2]
[419090868,1774861319643,-256.52717567,0.0001387,2]
[419090921,1774861831972,-4734.92671547,7.6e-05,2]
[419090930,1774861842739,-1720.93984887,7.6e-05,2]
[419090931,1774861842749,-171.517992,0.00013699,2]
[419090932,1774861842759,-1000.0,0.00013699,2]
[419090934,1774861842768,-615.0,0.00013699,2]
[419090935,1774861842779,-423.1891944,0.00013925,2]
[419090936,1774861842788,-300.0,0.00014202,2]
[419090938,1774861842798,-300.0,0.00014202,2]
[419090940,1774861842807,-300.0,0.00014202,2]
[419090942,1774861842816,-300.0,0.00014202,2]
[419090943,1774861842826,-300.0,0.00014202,2]
[419090944,1774861842835,-300.0,0.00014202,2]
[419090945,1774861842845,-300.0,0.00014202,2]
[419090946,1774861842854,-300.0,0.00014202,2]
[419090947,1774861842864,-300.0,0.00014202,2]
[419090948,1774861842873,-300.0,0.00014202,2]
[419090949,1774861842882,-300.0,0.00014202,2]
[419090950,1774861842893,-286.4817884,0.00014202,2]
[419090951,1774861842905,-13.5182116,0.00014202,2]
[419090952,1774861842914,-300.0,0.00014202,2]
[419090953,1774861842924,-2760.99670257,0.00015318,2]
[419090956,1774861843501,-1133.36203108,0.00015318,2]
[419090957,1774861843513,-3041.54346095,0.00015318,2]
[419090958,1774861843524,-500.0,0.000156,2]
[419090959,1774861843534,-3587.34839538,0.00016438,2]
[419090960,1774861843688,-1412.65160462,0.00016438,2]
[419090962,1774861843698,-5000.0,0.00016438,2]
[419090964,1774861843709,-5000.0,0.00016438,2]
[419090965,1774861843719,-5000.0,0.00016438,2]
[419090966,1774861843730,-5000.0,0.00016438,15]